bitfinex-derivatives/quotes_ETHF0:USTF0_20250320
["timestamp","ask_amount","ask_price","bid_price","bid_amount"]
[1742469290446,5.51391,1987.8,1987.7,1.01413372]
[1742469290755,4.5074,1987.8,1987.7,1.01413372]
[1742469291651,5.51391,1987.8,1987.7,0.00756372]
[1742469293552,5.51391,1987.8,1987.7,1.01413372]
[1742469294455,4.5074,1987.8,1987.7,1.01413372]
[1742469294957,5.51391,1987.8,1987.7,0.00756372]
[1742469295262,5.51391,1987.8,1987.7,1.32476372]
[1742469295553,5.51391,1987.8,1987.7,0.00756372]
[1742469297956,5.51391,1987.8,1987.7,1.01413372]
[1742469298161,5.51391,1987.8,1987.7,2.35813372]
[1742469298661,5.51391,1987.8,1987.7,1.35156372]
[1742469300068,5.51391,1987.8,1987.7,0.00756372]
[1742469300463,5.51391,1987.8,1987.7,1.30746372]
[1742469301957,5.51391,1987.8,1987.7,2.31403372]
[1742469302160,5.51391,1987.8,1987.7,1.30746372]
[1742469303566,5.51391,1987.8,1987.7,0.00756372]
[1742469303760,1.00667,1987.5,1987.4,1.3861]
[1742469303963,1.00667,1987.5,1986.7,2.51756]
[1742469303964,1.00696,1987.0,1986.7,5.96]
[1742469304196,1.00695,1987.0,1986.8,2.0553]
[1742469304469,1.00695,1987.0,1986.9,1.3861]
[1742469304663,2.34165,1987.0,1986.9,1.3861]
[1742469305067,2.34162,1987.0,1986.9,1.3861]
[1742469306774,1.3347,1987.0,1986.9,1.3861]
[1742469307064,2.0203,1987.0,1986.9,2.39307]
[1742469307464,3.02722,1987.0,1986.9,2.39307]
[1742469307672,3.02722,1987.0,1986.9,1.3861]
[1742469307874,2.0203,1987.0,1986.9,2.39307]
[1742469308073,3.21536372,1987.1,1987.0,1.00692]
[1742469308389,4.58356372,1987.1,1987.0,1.4248]
[1742469308672,5.59043372,1987.1,1987.0,1.4248]
[1742469309265,3.21536372,1987.1,1987.0,2.43172]
[1742469310871,4.22223372,1987.1,1987.0,1.4248]
[1742469311463,3.21536372,1987.1,1987.0,1.4248]
[1742469311774,3.21536372,1987.1,1987.0,2.43172]
[1742469312465,0.00756372,1987.1,1987.0,2.43172]
[1742469312667,3.2078,1987.6,1987.2,2.51705]
[1742469312869,3.01978,1987.7,1987.5,1.00666]
[1742469313070,2.0132,1987.7,1987.6,1.2979]
[1742469313273,3.01977,1987.7,1987.6,1.2979]
[1742469313683,2.0132,1987.7,1987.6,1.2979]
[1742469314076,3.01977,1987.7,1987.6,1.2979]
[1742469319372,1.00672,1987.4,1987.3,1.66552]
[1742469319575,3.2078,1987.4,1987.3,1.66552]
[1742469320070,3.8959,1987.4,1987.3,1.66552]
[1742469320771,3.8959,1987.4,1987.3,3.01592]
[1742469320972,4.90262,1987.4,1987.3,3.01592]
[1742469321283,3.8959,1987.4,1987.3,3.01592]
[1742469321474,3.2078,1987.4,1987.3,3.01592]
[1742469322374,3.2078,1987.4,1987.3,2.0092]
[1742469322574,3.2078,1987.4,1987.3,3.01597]
[1742469323581,4.21452,1987.4,1987.3,2.0092]
[1742469323778,5.64212,1987.4,1987.3,1.3504]
[1742469324080,6.98162,1987.4,1987.3,1.3504]
[1742469324676,5.2852,1987.4,1987.3,2.35717]
[1742469324876,3.2078,1987.4,1987.3,2.35717]
[1742469330609,0.6987,1987.7,1987.4,2.51675]
[1742469330789,2.1009,1987.7,1987.6,1.00662]
[1742469331295,2.1009,1987.7,1987.6,2.33192]
[1742469334397,3.2078,1987.8,1987.7,1.00657]
[1742469334592,3.2078,1987.8,1987.7,2.40667]
[1742469334989,3.8534,1987.8,1987.7,2.40667]
[1742469335184,5.1965,1987.8,1987.7,2.40667]
[1742469336099,3.2078,1987.8,1987.7,2.40667]
[1742469336492,3.2078,1987.8,1987.7,43.20667]
[1742469337093,3.2078,1987.8,1987.7,2.40667]
[1742469337498,1.3691,1988.0,1987.9,1.00646]
[1742469337691,3.2078,1988.3,1988.2,1.00631]
[1742469338695,4.5769,1988.3,1988.2,2.36381]
[1742469338897,3.2078,1988.3,1988.2,2.36381]
[1742469339104,3.2078,1988.3,1988.2,3.00831]
[1742469339900,1.3691,1988.4,1988.2,1.3575]
[1742469340296,1.00626,1988.3,1988.2,1.3575]
[1742469340498,3.2078,1988.3,1988.2,2.36381]
[1742469340998,3.2078,1988.3,1988.2,3.06031]
[1742469342104,1.3988,1988.5,1988.4,1.00621]
[1742469342296,3.2078,1988.8,1988.4,2.51554]
[1742469342501,5.9603,1988.8,1988.7,1.00602]
[1742469342696,4.6142,1988.8,1988.7,1.00602]
[1742469343300,3.2078,1988.8,1988.7,1.00602]
[1742469343500,3.2078,1988.8,1988.7,1.67222]
[1742469345005,3.2078,1988.8,1988.7,0.6662]
[1742469345311,3.2078,1988.8,1988.7,1.67226]
[1742469345703,3.2078,1988.8,1988.7,0.6662]
[1742469346011,3.2078,1988.8,1988.7,1.67226]
[1742469346306,3.2078,1988.8,1988.7,2.32736]
[1742469346507,3.2078,1988.8,1988.7,1.3213]
[1742469346733,3.2078,1988.8,1988.7,2.32736]
[1742469347209,3.2078,1988.8,1988.7,1.3213]
[1742469347405,4.21381,1988.8,1988.7,1.3213]
[1742469347711,3.2078,1988.8,1988.7,2.32736]
[1742469348104,3.2078,1989.2,1988.7,12.9891]
[1742469348303,5.96,1990.0,1988.8,13.65971]
[1742469348304,3.2078,1989.4,1988.8,13.65971]
[1742469348509,3.2078,1989.2,1988.9,1.3008]
[1742469348807,2.33,1989.1,1988.9,42.10834432]
[1742469349002,1.3241,1989.1,1988.9,42.10834432]
[1742469349312,4.21371,1989.0,1988.9,0.00754432]
[1742469349510,3.2078,1989.0,1988.9,1.01350432]
[1742469351308,3.2078,1989.0,1988.9,0.00754432]
[1742469351500,3.2078,1989.0,1988.9,1.01350432]
[1742469351703,3.2078,1989.0,1988.9,2.34800432]
[1742469352115,3.2078,1989.0,1988.9,1.34204432]
[1742469352816,3.2078,1989.0,1988.9,2.34800432]
[1742469354012,1.3241,1989.1,1989.0,1.00591]
[1742469354214,1.3241,1989.1,1989.0,1.3345]
[1742469354414,1.3241,1989.1,1989.0,2.34041]
[1742469354711,2.6935,1989.1,1989.0,2.34041]
[1742469356420,3.69936,1989.1,1989.0,1.3345]
[1742469357118,3.69936,1989.1,1989.0,2.34041]
[1742469357310,3.69936,1989.1,1989.0,1.3345]
[1742469357921,1.00591,1989.0,1988.9,0.00754432]
[1742469358220,5.59591,1989.0,1988.9,1.41164432]
[1742469358407,5.59591,1989.0,1988.9,2.41760432]
[1742469359322,4.59,1989.0,1988.9,2.41760432]
[1742469359711,3.2078,1989.0,1988.9,2.41760432]
[1742469360826,1.3822,1989.2,1989.1,1.00586]
[1742469361029,5.57131,1989.4,1989.2,1.00577]
[1742469361223,1.3182,1989.3,1989.2,1.00577]
[1742469361528,1.3182,1989.3,1988.9,0.00754432]
[1742469361728,3.2078,1989.2,1988.9,0.00754432]
[1742469361928,1.3182,1989.1,1989.0,1.00591]
[1742469362126,1.9995,1989.1,1989.0,1.00591]
[1742469362324,3.00538,1989.1,1988.9,1.01347432]
[1742469362524,1.9947,1989.0,1988.9,1.01347432]
[1742469363325,0.6813,1989.1,1989.0,1.00591]
[1742469363531,1.3578,1989.1,1989.0,1.00591]
[1742469364225,2.36366,1989.1,1988.9,1.01346432]
[1742469364429,1.3578,1989.1,1989.0,1.00591]
[1742469365338,0.6813,1989.1,1989.0,1.00591]
[1742469365532,0.6813,1989.1,1989.0,1.68071]
[1742469365936,1.3513,1989.1,1989.0,1.68071]
[1742469366128,2.7066,1989.3,1989.2,1.00581]
[1742469366640,3.71237,1989.3,1989.1,1.66922]
[1742469366839,1.3089,1989.2,1989.1,1.66922]
[1742469367341,1.3553,1989.3,1989.2,1.00581]
[1742469367637,2.6642,1989.3,1989.2,1.00581]
[1742469367826,3.2078,1989.4,1989.3,1.00576]
[1742469368143,5.1623,1989.4,1989.3,1.00576]
[1742469368537,3.8534,1989.4,1989.3,1.00576]
[1742469369038,5.1623,1989.4,1989.3,1.00576]
[1742469369439,6.16801,1989.4,1989.2,1.00577]
[1742469369739,2.0411,1989.3,1989.2,1.00577]
[1742469369938,3.8534,1989.4,1989.3,1.00576]
[1742469370142,5.2098,1989.4,1989.3,1.00576]
[1742469371033,3.2078,1989.4,1989.3,1.00576]
[1742469371941,4.2013,1989.4,1989.3,1.00576]
[1742469372444,2.8449,1989.4,1989.3,1.00576]
[1742469373838,1.3836,1989.5,1989.4,1.00571]
[1742469374035,3.8669,1989.6,1989.5,1.00565]
[1742469374036,3.2078,1989.6,1989.5,1.00565]
[1742469375036,1.3836,1989.7,1989.6,1.0056]
[1742469375238,1.3836,1989.7,1989.5,0.6656]
[1742469375434,1.3836,1989.7,1989.6,1.0056]
[1742469375841,1.3836,1989.7,1989.6,2.3333]
[1742469376844,1.3836,1989.7,1989.6,1.3277]
[1742469377047,1.3836,1989.7,1989.6,2.3333]
[1742469377844,5.59695,1989.7,1989.6,1.3277]
[1742469378142,7.1053,1989.7,1989.3,4.5825]
[1742469378344,4.21345,1989.5,1989.4,1.3277]
[1742469378545,4.21345,1989.5,1989.0,5.96]
[1742469378546,5.72204,1989.5,1989.0,5.96]
[1742469378849,5.72204,1989.5,1988.9,0.00754432]
[1742469378850,4.21361,1989.2,1989.1,1.3826]
[1742469379638,3.911,1989.2,1988.9,0.00754432]
[1742469379837,3.2078,1989.0,1988.9,1.01346432]
[1742469380350,4.5267,1989.0,1988.9,1.01346432]
[1742469382346,3.2078,1989.0,1988.9,1.69096432]
[1742469382550,2.0033,1989.2,1989.1,1.00586]
[1742469383049,3.2078,1989.3,1989.1,1.00581]
[1742469383252,5.1865,1989.3,1989.1,1.2909]
[1742469383443,1.3001,1989.2,1989.1,2.29676]
[1742469383843,3.8864,1989.3,1989.1,2.29676]
[1742469384038,1.3001,1989.2,1989.0,0.6889]
[1742469384251,1.3001,1989.2,1989.1,1.00586]
[1742469384447,3.8864,1989.3,1989.1,1.00586]
[1742469384654,3.8864,1989.3,1989.2,1.00581]
[1742469385148,3.2078,1989.3,1989.2,1.00581]
[1742469385347,0.6522,1989.4,1989.3,1.00576]
[1742469385348,1.327,1989.4,1989.3,1.00576]
[1742469385654,3.2078,1989.4,1989.1,1.00581]
[1742469385845,3.02556,1989.3,1989.1,1.00585]
[1742469386045,1.327,1989.2,1989.0,0.6889]
[1742469386443,2.33281,1989.2,1989.0,1.69479]
[1742469386666,2.0029,1989.2,1989.0,0.6889]
[1742469386954,2.0029,1989.2,1989.1,1.00586]
[1742469387549,3.2078,1989.4,1989.0,3.20362]
[1742469387748,3.2078,1989.4,1989.2,1.00578]
[1742469387953,3.2078,1989.4,1989.3,1.00576]
[1742469388142,2.51361,1990.0,1989.4,1.00566]
[1742469388143,5.2246,1989.7,1989.4,1.00566]
[1742469388453,2.35671,1989.6,1989.4,1.00566]
[1742469388654,1.3511,1989.5,1989.4,1.00566]
[1742469388851,2.0086,1989.5,1989.2,0.6856]
[1742469389051,5.2164,1989.5,1989.3,1.00574]
[1742469389251,1.3511,1989.4,1989.2,0.6856]
[1742469389750,1.3511,1989.4,1989.3,1.00576]
[1742469390153,2.35682,1989.4,1989.2,1.69138]
[1742469390353,1.3511,1989.4,1989.2,0.6856]
[1742469390952,2.35681,1989.4,1989.1,1.00586]
[1742469391156,0.6523,1989.3,1989.1,1.00582]
[1742469391361,3.07216,1989.3,1989.1,1.00582]
[1742469391561,0.706,1989.2,1989.1,1.00582]
[1742469391856,5.3279,1989.2,1989.1,1.00586]
[1742469392050,5.3279,1989.2,1989.0,1.3926]
[1742469392252,2.1201,1989.2,1989.1,1.00586]
[1742469392451,0.706,1989.2,1989.1,1.00586]
[1742469394860,0.706,1989.2,1989.1,2.42486]
[1742469396151,1.71181,1989.2,1989.1,1.419]
[1742469396460,0.706,1989.2,1989.1,2.42486]
[1742469398259,0.706,1989.2,1989.1,1.419]
[1742469398463,1.00591,1989.0,1988.9,1.01349432]
[1742469398661,1.00591,1989.0,1988.9,1.37254432]
[1742469399066,3.2078,1989.0,1988.9,0.00754432]
[1742469399264,1.00586,1989.1,1989.0,1.00589]
[1742469399461,0.6924,1989.2,1989.1,1.00586]
[1742469399662,0.6523,1989.3,1989.2,1.00581]
[1742469400168,1.3605,1989.3,1989.2,1.00581]
[1742469400561,1.3605,1989.3,1989.2,2.36601]
[1742469403158,3.2078,1989.4,1989.3,1.00576]
[1742469403364,3.2078,1989.4,1989.3,2.40376]
[1742469404069,4.5537,1989.6,1989.5,1.00565]
[1742469404769,5.8746,1989.6,1989.5,1.00565]
[1742469405972,5.8746,1989.6,1989.4,2.40368]
[1742469406170,1.3528,1989.5,1989.4,2.40368]
[1742469407171,3.2078,1989.8,1989.7,1.00555]
[1742469407580,2.0102,1990.0,1989.9,1.00545]
[1742469408275,3.2078,1990.1,1990.0,1.0054]
[1742469408970,4.5606,1990.1,1990.0,1.0054]
[1742469412573,3.2078,1990.1,1990.0,1.0054]
[1742469412876,3.2078,1990.1,1990.0,1.6852]
[1742469413384,4.5896,1990.7,1990.5,1.00513]
[1742469413582,1.396,1990.6,1990.5,1.00515]
[1742469414008,2.40111,1990.6,1990.4,0.00754432]
[1742469414281,1.396,1990.6,1990.4,0.00754432]
[1742469414475,2.40115,1990.5,1990.4,0.00754432]
[1742469414777,5.60895,1990.5,1990.4,0.00754432]
[1742469414978,5.60895,1990.5,1989.9,3.2078]
[1742469414979,1.00525,1990.3,1989.9,3.2078]
[1742469415178,0.6719,1990.2,1990.1,1.00535]
[1742469415370,2.0166,1990.2,1990.1,1.00535]
[1742469416684,2.0166,1990.2,1990.1,1.69085]
[1742469417581,2.0166,1990.2,1990.1,2.37625]
[1742469417779,0.00747965,1990.3,1990.2,1.0053]
[1742469418077,0.00747965,1990.3,1990.2,2.3505]
[1742469418277,1.36007965,1990.3,1990.2,2.3505]
[1742469422069,0.00747965,1990.3,1990.2,2.3505]
[1742469425276,2.7401,1990.6,1990.2,2.3505]
[1742469425277,2.7401,1990.6,1990.5,1.00515]
[1742469426578,2.7401,1990.6,1990.5,2.39335]
[1742469427382,3.74522,1990.6,1990.4,1.00518]
[1742469427577,4.5601,1990.5,1990.1,3.2078]
[1742469427778,1.3523,1990.4,1990.3,1.00525]
[1742469427978,5.96,1990.6,1990.4,1.0052]
[1742469428282,1.3861,1990.5,1990.3,1.00522]
[1742469428780,1.3861,1990.5,1990.4,1.0052]
[1742469429377,2.7384,1990.5,1990.4,1.0052]
[1742469430179,3.74355,1990.5,1990.4,1.0052]
[1742469430377,2.7384,1990.5,1990.4,1.0052]
[1742469435682,2.7384,1990.5,1990.4,1.689]
[1742469435873,2.0554,1990.5,1990.4,1.689]
[1742469438184,3.2078,1990.7,1990.6,1.0051]
[1742469438381,3.9049,1990.7,1990.6,1.0051]
[1742469439088,4.90996,1990.7,1990.5,2.39943]
[1742469439283,3.9049,1990.7,1990.5,1.3943]
[1742469439489,4.90996,1990.7,1990.6,1.3943]
[1742469440277,1.00511,1990.6,1990.4,1.00516]
[1742469440782,1.2958,1990.5,1990.4,1.00516]
[1742469441287,1.2958,1990.5,1990.4,1.0052]
[1742469441489,1.2958,1990.5,1990.3,2.33832]
[1742469441689,1.3366,1990.4,1990.3,2.33835]
[1742469442385,2.6324,1990.4,1990.3,2.33835]
[1742469443583,4.21288,1990.7,1990.5,1.00511]
[1742469443780,2.6783,1990.6,1990.2,3.5923187]
[1742469444087,1.3381,1990.5,1990.4,1.00518]
[1742469444691,2.34326,1990.5,1990.3,1.00521]
[1742469444890,1.3381,1990.5,1990.4,1.0052]
[1742469445087,1.3402,1990.6,1990.4,1.0052]
[1742469445386,1.3402,1990.6,1990.2,3.5923187]
[1742469445693,1.3402,1990.6,1990.4,1.0052]
[1742469446188,1.0052,1990.4,1990.3,1.00522]
[1742469446383,1.00522,1990.4,1990.3,1.00525]
[1742469446588,1.00522,1990.4,1990.2,4.5975687]
[1742469446786,0.6731,1990.3,1990.2,1.3897687]
[1742469446990,0.6731,1990.3,1990.2,4.5975687]
[1742469447183,0.6563,1990.6,1990.2,0.3845187]
[1742469447384,1.3294,1990.6,1990.5,1.00515]
[1742469447784,3.2078,1990.7,1990.6,1.0051]
[1742469449587,9.1678,1991.1,1990.5,3.17258]
[1742469449786,1.00488,1991.1,1990.9,1.00494]
[1742469449988,4.5773,1991.3,1990.8,1.00495]
[1742469450185,1.00496,1990.9,1990.7,1.00501]
[1742469450423,0.7067,1990.8,1990.7,1.00501]
[1742469450592,1.3695,1990.8,1990.7,1.00501]
[1742469450792,2.37451,1990.8,1990.6,1.00509]
[1742469450990,1.3695,1990.8,1990.5,0.6597]
[1742469451192,1.3695,1990.8,1990.7,1.00505]
[1742469452394,9.1678,1991.1,1990.6,3.2078]
[1742469452590,1.005,1990.8,1990.6,4.21287]
[1742469452795,1.00498,1990.9,1990.6,1.00507]
[1742469453000,1.005,1990.8,1990.6,3.2078]
[1742469453193,1.005,1990.8,1990.5,1.66481]
[1742469453388,0.6462,1990.7,1990.6,1.0051]
[1742469453597,0.6462,1990.7,1990.5,1.66481]
[1742469453799,0.6462,1990.7,1990.5,0.6597]
[1742469453999,1.65127,1990.7,1990.5,1.66484]
[1742469454301,0.6462,1990.6,1990.5,1.66484]
[1742469454691,0.6462,1990.6,1990.5,2.33544]
[1742469455399,0.6564,1990.8,1990.7,1.00505]
[1742469455599,1.3024,1990.8,1990.7,1.00505]
[1742469457403,4.21275,1990.9,1990.8,1.005]
[1742469457599,0.6564,1990.9,1990.8,1.005]
[1742469457799,1.66135,1990.9,1990.8,1.005]
[1742469457998,0.6564,1990.9,1990.8,1.005]
[1742469458196,1.66137,1990.9,1990.7,1.00501]
[1742469458501,3.8642,1990.9,1990.5,2.51286]
[1742469458799,4.86916,1990.9,1990.7,2.4048]
[1742469459003,4.86916,1990.9,1990.8,2.4048]
[1742469459395,4.86916,1990.9,1990.8,1.3998]
[1742469460193,3.8642,1990.9,1990.8,2.4048]
[1742469461298,4.86915,1990.9,1990.8,2.4048]
[1742469461598,3.8642,1990.9,1990.4,3.2078]
[1742469461903,4.21298,1990.5,1990.4,1.00519]
[1742469462107,1.0052,1990.4,1990.3,1.3255]
[1742469462297,1.00535,1990.1,1990.0,4.22073432]
[1742469462501,1.00535,1990.1,1990.0,0.00754432]
[1742469463007,1.00532,1990.2,1990.0,1.01290432]
[1742469463301,4.21315,1990.1,1990.0,0.00754432]
[1742469463603,4.21315,1990.1,1990.0,1.33304432]
[1742469464102,1.00532,1990.2,1990.1,1.00535]
[1742469464302,1.00532,1990.2,1990.0,2.33841432]
[1742469464502,1.66415,1990.1,1990.0,1.33304432]
[1742469464699,1.66415,1990.1,1990.0,0.00754432]
[1742469466197,3.2078,1990.3,1990.1,1.00531]
[1742469466198,1.00526,1990.3,1990.1,1.00531]
[1742469466506,1.00526,1990.3,1990.0,3.21534432]
[1742469466507,1.00514,1990.6,1990.3,1.00525]
[1742469466700,2.6735,1990.6,1990.5,1.00515]
[1742469466900,2.6735,1990.6,1990.3,0.682]
[1742469467210,1.00513,1990.6,1990.3,0.682]
[1742469467507,3.2078,1990.7,1990.3,0.682]
[1742469467702,1.00517,1990.5,1990.3,1.68723]
[1742469468005,1.0052,1990.4,1990.3,0.682]
[1742469468304,2.3491,1990.4,1990.2,3.2078]
[1742469468806,2.3491,1990.4,1990.2,4.2131]
[1742469469108,1.3439,1990.4,1990.2,4.2131]
[1742469469310,1.3439,1990.4,1990.3,1.00525]
[1742469469706,4.21287,1990.7,1990.2,3.2078]
[1742469470010,1.3439,1990.6,1990.4,1.00517]
[1742469470206,3.2078,1990.7,1990.5,1.00515]
[1742469470407,5.57066,1990.7,1990.4,1.00517]
[1742469470709,2.36286,1990.7,1990.5,0.6742]
[1742469470913,1.3578,1990.7,1990.5,2.33021]
[1742469471304,1.3578,1990.7,1990.5,1.3251]
[1742469471502,1.3578,1990.7,1990.5,2.33022]
[1742469471703,2.36285,1990.7,1990.5,1.3251]
[1742469471910,2.36285,1990.7,1990.0,0.00754432]
[1742469471911,1.3578,1990.7,1990.2,3.2078]
[1742469472110,1.00517,1990.5,1990.2,3.2078]
[1742469472412,2.7241,1990.4,1990.3,1.00525]
[1742469472910,1.00507,1990.7,1990.4,1.00518]
[1742469473111,2.7241,1990.6,1990.4,1.00518]
[1742469473313,1.3866,1990.5,1990.4,1.00518]
[1742469474207,1.3663,1990.6,1990.5,1.00515]
[1742469476507,1.3663,1990.6,1990.4,3.2078]
[1742469476826,2.37141,1990.6,1990.3,1.00525]
[1742469477013,1.4173,1990.5,1990.4,1.0052]
[1742469477405,2.42245,1990.5,1990.3,1.00521]
[1742469477611,1.4173,1990.5,1990.2,4.21308]
[1742469477811,1.4173,1990.4,1990.3,1.00525]
[1742469478416,1.4173,1990.4,1990.2,4.21307]
[1742469478613,1.4173,1990.4,1990.2,3.2078]
[1742469478813,1.4173,1990.4,1990.3,1.00525]
[1742469479413,0.7104,1990.5,1990.4,1.0052]
[1742469479614,2.1207,1990.5,1990.4,1.0052]
[1742469479914,2.1207,1990.5,1990.3,1.00522]
[1742469480121,3.12585,1990.5,1990.2,4.21307]
[1742469480311,1.4103,1990.4,1990.3,1.00525]
[1742469480512,2.41551,1990.4,1990.2,4.21308]
[1742469480712,2.41551,1990.4,1990.2,4.2131]
[1742469480916,1.4103,1990.3,1990.2,4.2131]
[1742469481317,1.4103,1990.4,1990.3,1.00525]
[1742469481819,1.71555,1990.5,1990.2,3.2078]
[1742469482020,3.12585,1990.5,1990.3,1.00524]
[1742469482216,2.41552,1990.4,1990.2,4.21308]
[1742469482419,1.328,1990.3,1990.2,4.21307]
[1742469482723,1.328,1990.3,1990.2,4.2131]
[1742469483917,1.328,1990.3,1990.2,3.2078]
[1742469484116,1.71556,1990.5,1990.3,1.00524]
[1742469484369,1.328,1990.4,1990.2,4.21307]
[1742469484524,1.328,1990.4,1990.2,3.2078]
[1742469484727,1.00535,1990.1,1990.0,0.00754432]
[1742469485118,4.21315,1990.1,1990.0,0.00754432]
[1742469485722,2.43105,1990.1,1990.0,0.00754432]
[1742469486323,2.43105,1990.1,1990.0,1.42434432]
[1742469487217,2.43105,1990.1,1990.0,0.00754432]
[1742469488021,1.4257,1990.1,1990.0,1.01294432]
[1742469488326,1.4257,1990.1,1990.0,2.42974432]
[1742469490123,1.4257,1990.1,1990.0,1.42434432]
[1742469490329,2.43105,1990.1,1990.0,1.42434432]
[1742469491926,1.4257,1990.1,1990.0,2.42974432]
[1742469492128,2.43105,1990.1,1990.0,2.42974432]
[1742469492431,2.43105,1990.1,1990.0,1.42434432]
[1742469493027,1.4257,1990.1,1990.0,2.42974432]
[1742469493328,1.3156,1990.2,1990.0,1.42434432]
[1742469493527,3.2078,1990.5,1990.1,1.3139]
[1742469493729,3.2078,1990.5,1990.4,1.0052]
[1742469494433,4.21285,1990.7,1990.5,1.00512]
[1742469494624,3.8974,1990.7,1990.6,1.392]
[1742469494830,3.8974,1990.7,1990.6,2.3971]
[1742469495425,1.3856,1990.8,1990.7,1.00505]
[1742469495630,0.6896,1990.9,1990.7,2.397]
[1742469495930,2.99445,1990.9,1990.8,1.392]
[1742469497228,3.2078,1991.4,1990.8,7.1123]
[1742469497531,4.21253,1991.4,1991.2,1.00478]
[1742469497730,3.2078,1991.4,1991.3,1.3571]
[1742469497926,4.5579,1991.4,1991.3,1.3571]
[1742469498133,1.69465,1991.5,1991.3,1.3571]
[1742469498331,0.69,1991.5,1991.3,2.36181]
[1742469498534,0.69,1991.5,1991.3,1.3571]
[1742469498734,2.0401,1991.5,1991.4,2.3618]
[1742469499357,0.6896,1991.6,1991.5,1.00464]
[1742469499535,0.6896,1991.6,1991.5,2.36174]
[1742469499735,0.6896,1991.6,1991.5,1.3571]
[1742469499932,0.6896,1991.6,1991.5,2.36174]
[1742469500128,1.3501,1991.7,1991.5,1.3571]
[1742469500340,1.3501,1991.7,1991.6,1.00459]
[1742469500534,1.3501,1991.7,1991.5,1.3571]
[1742469500730,1.3501,1991.7,1991.6,1.00459]
[1742469500930,3.2078,1992.0,1991.6,3.2078]
[1742469501132,3.2078,1992.0,1991.9,1.00444]
[1742469501439,1.00432,1992.2,1991.9,1.00442]
[1742469501643,1.00432,1992.2,1991.7,2.0911]
[1742469501644,2.43091,1992.0,1991.8,1.00445]
[1742469501938,2.43091,1992.0,1991.9,0.00754432]
[1742469502242,1.00451,1991.8,1991.4,3.9127]
[1742469502534,1.4265,1991.7,1991.6,1.00456]
[1742469502738,1.4265,1991.7,1991.5,1.4076]
[1742469503040,2.1386,1991.7,1991.6,1.00459]
[1742469504342,0.00754432,1991.8,1991.7,1.00454]
[1742469504677,0.00754432,1991.8,1991.5,1.41514432]
[1742469504831,0.00754432,1991.8,1991.7,1.00454]
[1742469505030,1.31894432,1991.8,1991.7,1.00454]
[1742469505239,1.97634432,1991.8,1991.7,1.00454]
[1742469506233,2.98085432,1991.8,1991.6,2.37436]
[1742469506532,1.97634432,1991.8,1991.6,1.3698]
[1742469506744,2.30104,1991.7,1991.6,1.3698]
[1742469506939,1.962,1991.7,1991.6,2.37439]
[1742469507440,3.87274432,1991.8,1991.7,1.00454]
[1742469507642,0.66494432,1991.8,1991.7,2.33084]
[1742469508139,4.87723432,1991.8,1991.7,1.3263]
[1742469511143,3.87274432,1991.8,1991.7,2.33084]
[1742469511542,3.87274432,1991.8,1991.7,1.3263]
[1742469511543,6.18953432,1991.8,1991.7,1.3263]
[1742469511942,1.00459,1991.6,1991.5,1.01215432]
[1742469512440,1.00459,1991.6,1991.5,0.00754432]
[1742469512636,1.67589,1991.6,1991.5,0.00754432]
[1742469512838,1.00459,1991.6,1991.5,1.01218432]
[1742469513441,2.31939,1991.6,1991.5,1.01218432]
[1742469514297,2.31939,1991.6,1991.5,0.00754432]
[1742469514548,2.31939,1991.6,1991.5,1.42134432]
[1742469515848,2.31939,1991.6,1991.0,3.2078]
[1742469515849,2.51178,1991.4,1991.0,3.2078]
[1742469516143,1.3497,1991.3,1991.2,1.0048]
[1742469516346,2.7271,1991.3,1991.2,1.0048]
[1742469516948,2.0271,1991.3,1991.2,2.3401]
[1742469520051,1.70466,1991.5,1991.3,1.00473]
[1742469520249,5.96,1991.6,1991.4,1.3098]
[1742469520452,3.71997,1991.7,1991.4,1.3098]
[1742469520652,3.71997,1991.7,1991.5,2.33982]
[1742469520852,2.7154,1991.7,1991.6,2.31439]
[1742469521054,2.7154,1991.7,1991.6,1.3098]
[1742469521255,3.71994,1991.7,1991.6,1.3098]
[1742469522448,1.69704,1991.7,1991.6,1.3098]
[1742469522854,1.00454,1991.7,1991.6,1.3098]
[1742469523447,1.29614432,1991.8,1991.6,1.3098]
[1742469523650,1.29614432,1991.8,1991.7,1.00454]
[1742469523651,0.00754432,1991.8,1991.7,1.00454]
[1742469524147,0.00754432,1991.8,1991.7,4.21234]
[1742469525055,1.3604,1992.1,1992.0,1.00439]
[1742469525254,1.3604,1992.1,1991.8,2.0373]
[1742469525255,2.781,1992.1,1991.8,2.0373]
[1742469525559,3.78538,1992.1,1991.9,2.0295]
[1742469525746,2.36478,1992.1,1992.0,1.3255]
[1742469525947,2.36478,1992.1,1991.7,3.2078]
[1742469525948,1.3604,1992.1,1991.7,4.21233]
[1742469526155,1.00444,1991.9,1991.8,1.3255]
[1742469527855,1.00444,1991.9,1991.8,2.32999]
[1742469528151,1.00444,1991.9,1991.8,1.3255]
[1742469528548,1.00444,1991.9,1991.8,2.32998]
[1742469529345,1.00444,1991.9,1991.8,1.3255]
[1742469530179,1.00444,1991.9,1991.8,2.32999]
[1742469530652,3.2078,1992.0,1991.9,1.00444]
[1742469530844,3.2078,1992.0,1991.9,2.42434]
[1742469531048,4.21219,1992.0,1991.9,1.4199]
[1742469531245,1.00439,1992.0,1991.9,1.4199]
[1742469531451,1.00439,1992.0,1991.9,2.42432]
[1742469531653,1.00439,1992.0,1991.9,1.4199]
[1742469532054,1.3471,1992.0,1991.6,0.704]
[1742469532281,1.00444,1991.9,1991.8,1.3822]